bitfinex/quotes_SOLUSD_20260222
["timestamp","ask_amount","ask_price","bid_price","bid_amount"]
[1771765721764,0.4649466,84.301,84.256,0.46667734]
[1771765722588,0.14216157,84.29,84.233,0.46667734]
[1771765722792,0.4649466,84.273,84.233,0.46667734]
[1771765722963,0.4649466,84.273,84.232,11.87197264]
[1771765723866,0.4649466,84.271,84.232,0.46667734]
[1771765724381,11.86573911,84.277,84.232,0.46667734]
[1771765724565,3.69383402,84.299,84.232,0.46667734]
[1771765724566,0.4649466,84.286,84.232,0.46667734]
[1771765724760,0.4649466,84.286,84.218,29.68465585]
[1771765724761,0.4649466,84.286,84.234,0.46667734]
[1771765724966,0.4649466,84.286,84.242,0.46667734]
[1771765726562,0.4649466,84.286,84.244,0.46667734]
[1771765728280,0.4649466,84.296,84.246,0.46667734]
[1771765731787,29.65505759,84.303,84.248,0.46667734]
[1771765731788,0.4649466,84.294,84.248,0.46667734]
[1771765736569,0.4649466,84.292,84.25,0.46667734]
[1771765738666,0.4649466,84.29,84.252,0.46667734]
[1771765740398,0.4649466,84.336,84.262,0.46667734]
[1771765740688,3.69383402,84.33,84.264,0.46667734]
[1771765740886,0.4649466,84.329,84.264,0.46667734]
[1771765741070,0.4649466,84.327,84.264,0.46667734]
[1771765741271,0.4649466,84.323,84.264,0.46667734]
[1771765741869,0.4649466,84.323,84.251,59.34647659]
[1771765741870,0.4649466,84.321,84.266,0.46667734]
[1771765744787,0.4649466,84.313,84.268,0.46667734]
[1771765745284,0.4649466,84.313,84.267,11.86704166]
[1771765745599,0.4649466,84.313,84.268,0.46667734]
[1771765746889,0.4649466,84.311,84.27,0.46667734]
[1771765747099,0.4649466,84.32,84.272,0.46667734]
[1771765750897,0.49600991,84.318,84.274,0.48463602]
[1771765752873,0.49600991,84.316,84.276,0.48463602]
[1771765755891,0.49600991,84.316,84.277,41.52971747]
[1771765756102,0.49600991,84.316,84.278,0.45588353]
[1771765758111,0.46476611,84.314,84.28,0.45588353]
[1771765760188,0.46476611,84.314,84.282,0.45588353]
[1771765760515,0.46476611,84.321,84.282,0.45588353]
[1771765761602,0.46476611,84.319,84.282,0.45588353]
[1771765762410,0.46476611,84.317,84.284,0.45588353]
[1771765766416,0.46476611,84.347,84.3,0.45588353]
[1771765766624,0.46476611,84.347,84.302,0.45588353]
[1771765767303,0.46476611,84.353,84.312,0.45588353]
[1771765768501,0.46476611,84.353,84.314,0.45588353]
[1771765770790,0.46476611,84.353,84.319,0.28432314]
[1771765770994,0.46476611,84.353,84.322,0.45588353]
[1771765772613,0.46476611,84.353,84.324,0.45588353]
[1771765773009,0.46476611,84.366,84.324,0.45588353]
[1771765775013,11.85325668,84.365,84.326,0.45588353]
[1771765775204,0.46476611,84.364,84.326,0.45588353]
[1771765776920,0.46476611,84.364,84.325,41.50607766]
[1771765776921,0.46476611,84.364,84.32,12.31542303]
[1771765777422,0.46476611,84.364,84.296,9.0546959]
[1771765777423,0.46476611,84.362,84.321,0.45588353]
[1771765782825,0.4847394,84.36,84.323,0.49263534]
[1771765784921,0.4847394,84.358,84.324,11.85901997]
[1771765785417,0.4847394,84.358,84.325,0.49263534]
[1771765786219,0.4847394,84.358,84.324,11.85901997]
[1771765787520,0.4847394,84.356,84.321,0.49263534]
[1771765790530,59.2572306,84.378,84.316,0.49263534]
[1771765790531,0.4847394,84.354,84.316,0.49263534]
[1771765792310,0.4847394,84.354,84.318,0.49263534]
[1771765792529,0.4847394,84.364,84.322,0.49263534]
[1771765794629,0.4847394,84.362,84.324,0.49263534]
[1771765795416,0.4847394,84.367,84.324,0.49263534]
[1771765796723,0.4847394,84.365,84.326,0.49263534]
[1771765798721,0.4847394,84.372,84.334,0.49263534]
[1771765799338,0.4847394,84.371,84.334,0.49263534]
[1771765801533,0.4847394,84.369,84.336,0.49263534]
[1771765803632,0.4847394,84.367,84.337,11.85719197]
[1771765805848,0.4847394,84.367,84.337,0.49263534]
[1771765807850,0.2,84.39,84.319,0.49263534]
[1771765807851,0.4847394,84.365,84.319,0.49263534]
[1771765808033,0.4847394,84.365,84.322,0.49263534]
[1771765808661,0.49559461,84.385,84.324,0.4632983]
[1771765808829,0.49559461,84.385,84.343,0.4632983]
[1771765809648,0.49559461,84.388,84.353,0.4632983]
[1771765809829,0.49559461,84.388,84.355,0.4632983]
[1771765810924,0.2,84.39,84.363,0.4632983]
[1771765812950,0.49559461,84.4,84.362,0.4632983]
[1771765813130,0.49559461,84.405,84.365,0.28432314]
[1771765813337,0.49559461,84.405,84.372,0.4632983]
[1771765813532,0.49559461,84.411,84.372,0.4632983]
[1771765813740,0.49559461,84.416,84.374,0.4632983]
[1771765814045,0.49559461,84.416,84.382,0.4632983]
[1771765814753,0.49319704,84.422,84.382,0.4632983]
[1771765815140,12.33846469,84.422,84.384,0.48506285]
[1771765816944,0.49319704,84.422,84.392,0.48506285]
[1771765817142,0.49319704,84.422,84.394,0.48506285]
[1771765819567,0.49319704,84.419,84.382,11.85073172]
[1771765820566,0.49319704,84.419,84.37,11.85252594]
[1771765821543,0.49319704,84.419,84.371,0.48506285]
[1771765821748,0.49319704,84.417,84.373,0.48506285]
[1771765824561,0.49319704,84.415,84.375,0.48506285]
[1771765825062,0.49319704,84.415,84.361,11.8538187]
[1771765825360,0.49319704,84.415,84.363,0.48506285]
[1771765826642,0.49319704,84.413,84.365,0.48506285]
[1771765828862,0.49319704,84.411,84.367,0.48506285]
[1771765830460,0.49319704,84.411,84.373,0.48506285]
[1771765831269,0.49319704,84.411,84.375,0.48506285]
[1771765831562,0.49319704,84.411,84.383,0.48506285]
[1771765835565,0.49319704,84.411,84.374,41.4819731]
[1771765835566,0.49319704,84.411,84.385,0.48506285]
[1771765836447,0.49319704,84.419,84.393,0.48506285]
[1771765836760,0.49319704,84.435,84.399,0.48506285]
[1771765836966,0.49319704,84.435,84.384,46.83791913]
[1771765836967,0.49319704,84.435,84.403,0.48506285]
[1771765837372,12.33671475,84.435,84.403,0.48506285]
[1771765837549,0.49319704,84.434,84.405,0.48506285]
[1771765840046,0.49319704,84.434,84.407,0.47049335]
[1771765840847,0.2,84.46,84.4,11.84829413]
[1771765840848,0.49577056,84.432,84.4,11.84829413]
[1771765841878,0.49577056,84.432,84.4,12.31878748]
[1771765842402,0.49577056,84.43,84.401,0.47049335]
[1771765842559,0.2,84.46,84.389,0.28432314]
[1771765842560,0.49577056,84.436,84.403,0.47049335]
[1771765843472,0.49577056,84.436,84.391,0.28432314]
[1771765843648,0.49577056,84.436,84.392,0.47049335]
[1771765844968,0.49577056,84.434,84.384,0.47049335]
[1771765847265,0.49577056,84.432,84.384,0.47049335]
[1771765847466,0.49577056,84.432,84.38,11.85113]
[1771765848852,0.49577056,84.432,84.354,5.36086188]
[1771765848853,0.28432314,84.425,84.373,11.85210228]
[1771765849054,0.49577056,84.422,84.374,0.47049335]
[1771765849457,0.49577056,84.42,84.374,0.47049335]
[1771765850076,0.49577056,84.42,84.375,12.3223452]
[1771765850281,0.49577056,84.42,84.376,0.47049335]
[1771765852259,0.49577056,84.418,84.378,0.47049335]
[1771765853067,0.49577056,84.418,84.377,11.85157092]
[1771765854061,0.49577056,84.416,84.377,0.47049335]
[1771765857980,0.49577056,84.414,84.379,0.47049335]
[1771765861865,0.49577056,84.412,84.362,0.47049335]
[1771765866594,0.49577056,84.41,84.364,0.47049335]
[1771765866973,0.49577056,84.41,84.372,0.47049335]
[1771765867888,0.49577056,84.414,84.382,0.47049335]
[1771765868876,0.49577056,84.414,84.384,0.4522902]
[1771765871801,0.47751556,84.451,84.389,0.14216157]
[1771765871981,0.47751556,84.451,84.392,0.4522902]
[1771765872302,0.47751556,84.448,84.392,0.4522902]
[1771765873885,0.45099965,84.446,84.395,0.28432314]
[1771765874204,0.45099965,84.446,84.402,0.49648567]
[1771765874502,0.45099965,84.446,84.412,0.49648567]
[1771765874915,0.45099965,84.446,84.393,41.47263398]
[1771765874916,0.45099965,84.461,84.427,0.28432314]
[1771765875105,0.45099965,84.467,84.432,0.49648567]
[1771765875986,0.45099965,84.467,84.434,0.49648567]
[1771765878105,0.45099965,84.467,84.433,41.45298638]
[1771765878106,0.45099965,84.467,84.436,0.49648567]
[1771765879091,0.45099965,84.467,84.437,11.84314933]
[1771765879291,0.45099965,84.467,84.438,0.49648567]
[1771765880520,0.45099965,84.463,84.438,0.49648567]
[1771765881692,0.45099965,84.459,84.439,12.33935448]
[1771765881989,0.45099965,84.459,84.439,11.84286881]
[1771765882187,0.45099965,84.459,84.44,0.49648567]
[1771765885907,0.45099965,84.459,84.439,11.84286881]
[1771765886502,0.45099965,84.459,84.434,11.84348996]
[1771765886903,0.45099965,84.459,84.433,0.49648567]
[1771765888232,0.45099965,84.459,84.435,0.49648567]
[1771765889130,0.45099965,84.479,84.443,0.49648567]
[1771765890227,0.45099965,84.477,84.445,0.49648567]
[1771765892113,0.45099965,84.475,84.447,0.49648567]
[1771765894303,0.45099965,84.475,84.448,11.84160666]
[1771765894623,0.45099965,84.475,84.449,0.49648567]
[1771765896306,0.45099965,84.473,84.445,0.49648567]
[1771765896619,0.45099965,84.473,84.446,11.84188712]
[1771765897902,0.45099965,84.473,84.44,0.49648567]
[1771765898126,0.45099965,84.473,84.427,0.45524107]
[1771765898307,0.46470214,84.471,84.429,0.45524107]
[1771765899531,0.46470214,84.471,84.423,11.8450646]
[1771765900427,0.46470214,84.469,84.42,0.45524107]
[1771765902727,0.46470214,84.467,84.422,0.45524107]
[1771765905734,0.46470214,84.465,84.423,12.30035436]
[1771765906040,0.46470214,84.463,84.416,0.45524107]
[1771765908538,0.46470214,84.461,84.418,0.45524107]
[1771765910719,59.18514747,84.481,84.42,0.45524107]
[1771765910720,0.46470214,84.459,84.42,0.45524107]
[1771765911113,0.46470214,84.459,84.419,11.84567455]
[1771765911319,0.46470214,84.459,84.42,0.45524107]
[1771765913829,0.46470214,84.457,84.422,0.45524107]
[1771765915842,0.46470214,84.455,84.424,0.45524107]
[1771765918537,0.46470214,84.453,84.426,0.45524107]
[1771765920841,0.46470214,84.453,84.428,0.45524107]
[1771765925145,0.46470214,84.453,84.43,0.45524107]
[1771765926547,11.8410458,84.452,84.43,0.45524107]
[1771765926736,0.46470214,84.451,84.43,0.45524107]
[1771765928729,0.48410815,84.449,84.43,0.45524107]
[1771765936347,0.48410815,84.449,84.431,11.84399095]
[1771765937058,0.48410815,84.449,84.431,12.29935992]
[1771765938364,0.48410815,84.449,84.432,0.45536897]
[1771765951768,0.49316278,84.472,84.432,12.29911691]
[1771765951965,0.49316278,84.472,84.433,0.45536897]
[1771765957678,0.49316278,84.47,84.435,0.45536897]
[1771765963384,0.45590008,84.468,84.437,0.46190197]
[1771765964578,0.45590008,84.466,84.439,0.46190197]
[1771765968984,0.45590008,84.464,84.43,0.46190197]
[1771765977519,102.7,84.479,84.4,61.4]
[1771765977520,0.45590008,84.459,84.402,0.46190197]
[1771765978697,0.45590008,84.457,84.404,0.46190197]
[1771765980692,41.44169744,84.456,84.405,41.46673774]
[1771765980992,41.44169744,84.456,84.406,0.46190197]
[1771765980993,0.45590008,84.455,84.406,0.46190197]
[1771765984408,0.45590008,84.453,84.408,0.46190197]
[1771765987009,0.45590008,84.451,84.408,0.46190197]
[1771765988802,0.45590008,84.451,84.407,11.84727057]
[1771765989107,0.48982522,84.442,84.403,0.46601065]
[1771765991385,0.48982522,84.44,84.403,0.46601065]
[1771765992302,0.48982522,84.44,84.405,0.46601065]
[1771765993011,0.48982522,84.445,84.405,0.46601065]
[1771765994910,0.48982522,84.445,84.407,0.45564561]
[1771765995213,0.48815165,84.443,84.407,0.45564561]
[1771765996212,0.48815165,84.449,84.407,0.45564561]
[1771765997508,0.48815165,84.447,84.409,0.45564561]
[1771765998608,0.48815165,84.445,84.411,0.45564561]
[1771765999416,0.48815165,84.445,84.413,0.45564561]
[1771766001814,0.48815165,84.445,84.415,0.45564561]
[1771766004612,0.48815165,84.445,84.417,0.45564561]
[1771766009192,0.48815165,84.445,84.419,0.45564561]
[1771766010306,0.48815165,84.445,84.421,0.45564561]
[1771766011515,0.48815165,84.445,84.423,0.45564561]
[1771766012125,0.48815165,84.452,84.423,0.45564561]
[1771766012299,0.48815165,84.456,84.423,0.45564561]
[1771766015498,0.48815165,84.454,84.41,0.45564561]
[1771766015705,0.48815165,84.454,84.404,0.45564561]
[1771766019015,41.44316957,84.453,84.405,11.84763935]
[1771766019216,0.45756909,84.452,84.406,0.49525087]
[1771766025027,0.45756909,84.45,84.408,0.49525087]
[1771766029021,0.45756909,84.448,84.409,11.84707791]
[1771766029221,0.45756909,84.448,84.41,0.49525087]
[1771766030836,0.45756909,84.446,84.412,0.49525087]
[1771766034435,11.84202735,84.445,84.412,0.49525087]
[1771766034616,0.45756909,84.444,84.412,0.49525087]
[1771766036529,0.45756909,84.444,84.414,0.49525087]
[1771766036730,0.45756909,84.442,84.414,0.49525087]
[1771766039724,0.45756909,84.44,84.403,0.49525087]
[1771766041937,0.45756909,84.438,84.404,11.84777972]
[1771766042638,0.45756909,84.438,84.404,12.34303059]
[1771766044838,0.45756909,84.436,84.404,12.34303059]
[1771766045437,0.45756909,84.436,84.405,0.49525087]
[1771766049543,0.47067919,84.434,84.405,0.49525087]
[1771766051448,0.47067919,84.432,84.407,0.47665516]
[1771766052753,0.47067919,84.444,84.407,0.47665516]
[1771766053345,0.47067919,84.442,84.409,0.47665516]
[1771766055837,0.45901505,84.446,84.413,0.49894179]
[1771766056150,0.45901505,84.462,84.413,0.49894179]
[1771766058545,11.83978404,84.461,84.414,11.84637619]
[1771766058744,0.45901505,84.46,84.415,0.49894179]
[1771766059662,0.45901505,84.458,84.417,0.49894179]
[1771766062744,0.45901505,84.458,84.423,0.49894179]
[1771766065955,0.45901505,84.458,84.425,0.49894179]
[1771766066839,0.45901505,84.463,84.427,0.49894179]
[1771766067046,0.45901505,84.467,84.433,0.49894179]
[1771766069744,0.45901505,84.467,84.435,0.49894179]
[1771766071850,0.45901505,84.467,84.437,0.49894179]
[1771766075088,0.38813534,84.467,84.437,0.49894179]
[1771766076464,11.83904175,84.467,84.432,0.49894179]
[1771766077061,0.45901505,84.466,84.432,0.49894179]
[1771766079861,0.45901505,84.466,84.433,11.84371039]
[1771766080064,0.45901505,84.466,84.434,0.45247708]
[1771766083559,0.45901505,84.466,84.436,0.45247708]
[1771766088154,0.45901505,84.466,84.438,0.45247708]
[1771766091271,0.45901505,84.466,84.44,0.45247708]
[1771766093770,0.45901505,84.466,84.441,11.84258831]
[1771766095263,0.45901505,84.466,84.441,0.45247708]
[1771766097475,0.45901505,84.466,84.443,0.45247708]
[1771766101271,0.45901505,84.466,84.445,0.45247708]
[1771766103973,0.45901505,84.466,84.446,11.84188712]
[1771766104167,0.45901505,84.466,84.447,0.45247708]
[1771766105972,0.48598468,84.479,84.447,0.45247708]
[1771766106368,0.48598468,84.479,84.448,11.84160666]
[1771766106576,0.48598468,84.479,84.449,0.45247708]
[1771766107074,0.48598468,84.477,84.449,0.45247708]
[1771766108676,102.7,84.509,84.453,0.48823721]
[1771766109180,0.48558711,84.489,84.453,0.48823721]
[1771766109476,0.48558711,84.486,84.453,0.48823721]
[1771766109976,11.83652266,84.485,84.453,0.48823721]
[1771766110476,0.48558711,84.483,84.453,0.48823721]
[1771766110872,0.48558711,84.483,84.452,0.28432314]
[1771766110873,0.48558711,84.483,84.455,0.48823721]
[1771766113276,0.48558711,84.479,84.457,0.48823721]
[1771766113579,0.48558711,84.478,84.456,11.84048498]
[1771766115975,0.48558711,84.478,84.457,0.49236344]
[1771766116175,0.48558711,84.478,84.456,12.33284842]
[1771766116365,0.48558711,84.478,84.453,0.49236344]
[1771766116678,0.48558711,84.478,84.453,12.33326903]
[1771766116978,0.48558711,84.478,84.454,0.49236344]
[1771766117274,29.58991396,84.489,84.454,0.49236344]
[1771766117275,0.45777044,84.476,84.454,0.49236344]
[1771766119377,0.45777044,84.474,84.428,41.45544131]
[1771766119584,0.45777044,84.47,84.404,0.49236344]
[1771766120104,0.45777044,84.47,84.412,0.49236344]
[1771766121573,0.45777044,84.468,84.418,0.49236344]
[1771766124589,0.45777044,84.466,84.42,0.49236344]
[1771766127387,0.45777044,84.464,84.422,0.49236344]
[1771766130368,0.45777044,84.462,84.424,0.49236344]
[1771766130574,0.45777044,84.467,84.428,0.49236344]
[1771766131489,0.45777044,84.467,84.429,11.84427151]
[1771766131694,0.45777044,84.467,84.43,0.49236344]
[1771766133090,0.45777044,84.467,84.431,0.14216157]
[1771766133292,0.45777044,84.465,84.432,0.49236344]
[1771766133990,0.45777044,84.465,84.426,12.33691653]
[1771766134374,0.45777044,84.465,84.426,11.84455309]
[1771766135293,0.45777044,84.463,84.419,11.84559263]
[1771766135693,0.45777044,84.459,84.411,0.49236344]
[1771766137497,0.45777044,84.457,84.411,0.49236344]
[1771766139101,0.45777044,84.457,84.413,0.45822895]
[1771766141301,0.47764938,84.455,84.413,0.45822895]
[1771766143296,0.47764938,84.453,84.415,0.45822895]
[1771766144577,0.47764938,84.451,84.417,0.45822895]
[1771766146801,0.47764938,84.449,84.417,0.45822895]
[1771766150800,11.84160666,84.448,84.417,0.45822895]
[1771766150982,0.47764938,84.447,84.412,0.45822895]
[1771766152207,0.47764938,84.445,84.413,11.84651653]
[1771766153488,0.47764938,84.445,84.413,0.45822895]
[1771766154406,41.44758656,84.444,84.413,0.45822895]
[1771766154705,0.47764938,84.443,84.404,0.45822895]
[1771766155008,0.47764938,84.439,84.395,0.45822895]
[1771766158295,0.47764938,84.437,84.399,0.45822895]
[1771766161912,0.47764938,84.435,84.401,0.45822895]
[1771766166616,0.47764938,84.435,84.402,11.84806047]
[1771766166799,0.47764938,84.435,84.403,0.45822895]
[1771766167902,0.47764938,84.433,84.403,0.45822895]
[1771766170614,0.45225269,84.438,84.404,41.46722903]
[1771766170815,0.45225269,84.452,84.408,0.28432314]
[1771766171014,0.45225269,84.452,84.409,0.45391298]
[1771766174020,0.49630288,84.451,84.411,0.46606675]
[1771766175518,0.49630288,84.476,84.429,0.46606675]
[1771766175815,0.49630288,84.479,84.439,0.46606675]
[1771766177321,0.49630288,84.479,84.441,0.46606675]
[1771766177525,0.49630288,84.477,84.441,0.46606675]
[1771766180153,0.49630288,84.477,84.442,11.84244807]
[1771766180316,0.49630288,84.477,84.443,0.46606675]
[1771766180517,0.49630288,84.475,84.442,11.84244807]
[1771766180830,0.49630288,84.475,84.443,0.46606675]
[1771766182731,11.8376817,84.476,84.428,29.61076149]
[1771766182732,0.49630288,84.473,84.445,0.46606675]
[1771766186008,0.49630288,84.471,84.445,0.46606675]
[1771766191631,0.49630288,84.469,84.418,0.46606675]
[1771766192525,0.49630288,84.467,84.419,0.46606675]
[1771766194732,11.83908318,84.466,84.42,41.45936981]
[1771766195032,0.49630288,84.465,84.421,0.46606675]
[1771766200736,0.4901939,84.463,84.423,0.49466071]
[1771766202648,0.4901939,84.461,84.425,0.49466071]
[1771766206624,0.4901939,84.459,84.427,0.49466071]
[1771766212450,0.4901939,84.459,84.429,0.49466071]
[1771766214945,0.4901939,84.459,84.43,11.84413123]
[1771766215127,0.4901939,84.459,84.431,0.49466071]
[1771766217836,0.4901939,84.459,84.433,0.49466071]
[1771766220454,102.7,84.479,84.394,61.4]
[1771766220455,0.4901939,84.478,84.434,0.49466071]
[1771766221446,0.4901939,84.478,84.438,0.49466071]
[1771766222751,0.4901939,84.478,84.44,0.49466071]
[1771766223049,0.4901939,84.476,84.439,11.84286881]
[1771766227862,11.83782184,84.475,84.439,0.49466071]
[1771766228158,0.4901939,84.474,84.439,0.49466071]
[1771766230458,0.45028064,84.472,84.44,12.31495973]
[1771766232058,11.8383824,84.471,84.441,0.47223117]
[1771766232236,0.45028064,84.47,84.441,0.47223117]
[1771766236255,0.45133552,84.468,84.417,0.45273319]
[1771766236558,0.45133552,84.468,84.419,0.45273319]
[1771766239858,11.83894301,84.467,84.42,41.45936981]
[1771766240181,0.45133552,84.466,84.421,0.45273319]
[1771766241262,11.83839244,84.471,84.429,0.45273319]
[1771766241460,0.45133552,84.479,84.439,0.45273319]
[1771766242543,0.45133552,84.478,84.441,0.45273319]
[1771766245461,0.45133552,84.478,84.443,0.45273319]
[1771766247567,0.45133552,84.478,84.445,0.45273319]
[1771766248265,0.45133552,84.476,84.445,0.45273319]
[1771766249665,0.45133552,84.476,84.447,0.45273319]
[1771766252968,0.45133552,84.476,84.448,11.84160666]
[1771766253173,0.45133552,84.476,84.449,0.45273319]
[1771766258074,0.45133552,84.476,84.45,11.84132622]
[1771766258370,0.45133552,84.476,84.451,0.47129663]
[1771766259169,0.45133552,84.476,84.452,11.8410458]
[1771766259359,0.45133552,84.476,84.453,0.47129663]
[1771766263454,0.45133552,84.476,84.455,0.47129663]
[1771766264149,0.47491676,84.489,84.455,0.47129663]
[1771766264349,0.47491676,84.5,84.459,0.47129663]
[1771766266282,0.47491676,84.5,84.468,0.28432314]
[1771766266579,0.47491676,84.504,84.469,0.47129663]
[1771766270885,0.47491676,84.504,84.47,41.43482893]
[1771766271092,0.47491676,84.504,84.471,0.47129663]
[1771766272687,0.47491676,84.504,84.473,0.47129663]
[1771766274988,0.47491676,84.508,84.477,0.47129663]
[1771766275286,0.47491676,84.508,84.474,41.71719005]
[1771766275287,0.47491676,84.508,84.479,0.47129663]
[1771766275467,0.2,84.51,84.479,0.47129663]
[1771766276274,0.2,84.51,84.481,0.47129663]
[1771766276883,0.67491676,84.51,84.481,0.47129663]
[1771766277583,0.67491676,84.51,84.463,61.4]
[1771766277584,0.47491676,84.529,84.499,0.47129663]
[1771766277880,0.2,84.54,84.508,0.47129663]
[1771766278381,0.2,84.54,84.503,0.47129663]
[1771766278567,11.82886005,84.539,84.503,0.47129663]
[1771766279186,0.2,84.54,84.503,0.47129663]
[1771766279372,12.02883765,84.54,84.503,0.47129663]
[1771766279693,0.47491676,84.537,84.505,0.47129663]
[1771766281089,0.47491676,84.537,84.501,0.47129663]
[1771766282090,0.47491676,84.535,84.503,0.47129663]
[1771766286889,0.47491676,84.533,84.505,0.47129663]
[1771766289674,0.47132055,84.531,84.505,0.47129663]
[1771766291192,0.47132055,84.529,84.505,0.47129663]
[1771766291688,0.47132055,84.529,84.5,0.45953704]
[1771766292992,0.47132055,84.538,84.5,0.45953704]
[1771766293395,0.47132055,84.538,84.502,0.45953704]
[1771766293990,0.45419946,84.536,84.502,0.45953704]
[1771766295692,0.45419946,84.536,84.504,0.49588174]
[1771766297280,0.2,84.54,84.508,0.49588174]
[1771766298801,0.65419946,84.55,84.518,0.49588174]
[1771766298990,0.45419946,84.549,84.518,0.49588174]
[1771766299397,0.45419946,84.549,84.52,0.49588174]
[1771766301428,0.45419946,84.549,84.522,0.49588174]
[1771766301706,0.2,84.55,84.522,0.49588174]
[1771766302509,0.65419946,84.55,84.522,0.49588174]
[1771766302811,0.45419946,84.549,84.522,0.49588174]
[1771766304107,0.45419946,84.549,84.523,11.83109922]
[1771766304409,0.45419946,84.549,84.524,0.49588174]
[1771766305304,0.2,84.56,84.524,0.49588174]
[1771766305611,11.82606227,84.559,84.524,0.49588174]
[1771766306409,11.82606227,84.559,84.526,0.49588174]
[1771766307309,0.45419946,84.558,84.526,0.49588174]
[1771766309014,0.45419946,84.556,84.528,0.49588174]
[1771766310518,0.45419946,84.556,84.53,0.49588174]
[1771766310924,11.82662172,84.555,84.53,0.49588174]
[1771766311095,0.45419946,84.554,84.53,0.49588174]
[1771766314721,11.82690147,84.553,84.529,11.83025943]
[1771766314902,0.45419946,84.552,84.529,11.83025943]
[1771766317497,0.45419946,84.552,84.522,0.49588174]
[1771766320619,0.45419946,84.552,84.524,0.49338355]
[1771766322815,0.46040156,84.551,84.525,11.83081928]
[1771766323114,0.46040156,84.551,84.526,0.49338355]
[1771766326728,0.46040156,84.551,84.528,0.49338355]
[1771766329022,0.2,84.56,84.504,59.16831694]
[1771766329023,0.2,84.56,84.53,0.49338355]
[1771766329226,0.46040156,84.559,84.53,0.49338355]
[1771766332531,0.46040156,84.559,84.532,0.49338355]
[1771766335038,0.46040156,84.557,84.523,0.49338355]
[1771766336121,0.46040156,84.557,84.527,11.8304608]
[1771766337023,0.46040156,84.555,84.526,0.49338355]
[1771766339937,0.46040156,84.553,84.507,0.49338355]
[1771766340118,0.46040156,84.551,84.507,0.49338355]
[1771766340319,0.46040156,84.539,84.488,0.49338355]
[1771766340539,3.69383402,84.551,84.488,0.49338355]
[1771766340540,0.28432314,84.532,84.488,0.49338355]
[1771766340837,0.46040156,84.529,84.488,0.49338355]
[1771766341627,0.46040156,84.527,84.49,0.49338355]
[1771766342945,0.46040156,84.527,84.485,11.83640571]
[1771766344130,0.46040156,84.525,84.486,0.49338355]
[1771766345630,29.57165293,84.541,84.488,0.49338355]
[1771766345631,0.46040156,84.523,84.488,0.49338355]
[1771766349959,0.46040156,84.523,84.489,11.83586028]
[1771766350159,0.47384097,84.521,84.49,0.48843237]
[1771766351549,0.47384097,84.521,84.492,0.48843237]
[1771766352361,11.83151916,84.52,84.492,0.48843237]
[1771766352560,0.47384097,84.519,84.492,0.48843237]
[1771766353965,0.49616926,84.517,84.492,0.48843237]
[1771766358449,0.49616926,84.515,84.488,0.49766996]
[1771766358868,0.49616926,84.515,84.487,11.83612411]
[1771766361367,0.49616926,84.515,84.486,0.49766996]
[1771766362463,0.49616926,84.511,84.469,0.49766996]
[1771766362669,0.26577902,84.502,84.441,0.49766996]
[1771766363557,0.26577901,84.5,84.442,0.49766996]
[1771766366651,0.26577896,84.491,84.438,0.49766996]
[1771766366957,0.26577896,84.491,84.442,0.49766996]
[1771766367850,3.69383402,84.487,84.444,0.49766996]
[1771766368052,0.26577893,84.486,84.444,0.49766996]
[1771766371273,0.26577889,84.484,84.446,0.49766996]
[1771766373376,0.26577886,84.482,84.448,0.49766996]
[1771766375779,11.83698109,84.481,84.45,0.49766996]
[1771766376185,0.26577882,84.483,84.45,0.49766996]
[1771766376387,102.96577882,84.499,84.45,0.49766996]
[1771766376679,0.26577882,84.498,84.45,0.49766996]
[1771766378051,0.26577879,84.496,84.452,0.49962313]
[1771766382267,0.26577874,84.494,84.454,0.49962313]
[1771766385985,0.26577869,84.492,84.444,0.49962313]
[1771766387685,0.26577868,84.49,84.446,0.49962313]
[1771766390186,11.83586028,84.489,84.448,0.49962313]
[1771766390697,11.83586028,84.489,84.415,5.36086188]
[1771766390698,0.16577864,84.47,84.394,0.49962313]
[1771766390887,0.16577863,84.447,84.394,0.49962313]
[1771766391195,0.16577863,84.441,84.394,0.49962313]
[1771766393166,0.28432314,84.435,84.394,0.49962313]
[1771766393482,0.16577861,84.432,84.394,0.49962313]
[1771766395285,0.16577859,84.431,84.394,0.49962313]
[1771766395486,0.16577859,84.431,84.398,0.49962313]
[1771766395675,0.16577859,84.428,84.398,0.49962313]
[1771766398492,0.16577856,84.424,84.4,0.59962313]
[1771766401276,11.84497299,84.424,84.4,0.59962313]
[1771766401477,0.16577853,84.423,84.4,0.59962313]
[1771766404191,0.1657785,84.421,84.4,0.1]
[1771766404499,0.0657785,84.419,84.376,0.49962313]
[1771766404805,0.0657785,84.419,84.38,0.0342215]
[1771766405490,0.28432314,84.415,84.38,0.0342215]
[1771766405994,0.28432314,84.415,84.369,11.85268416]
[1771766405995,3.97815716,84.411,84.36,1e-08]
[1771766406296,0.28432314,84.406,84.36,1e-08]
[1771766407378,0.28432314,84.406,84.361,0.5000004]
[1771766407784,0.28432314,84.401,84.361,0.5000004]
[1771766411202,0.28432314,84.396,84.36,1e-08]
[1771766411583,0.28432314,84.396,84.36,0.50000041]
[1771766413198,0.28432314,84.396,84.299,3.69383402]
[1771766413199,5.64518502,84.387,84.318,0.5000004]
[1771766413401,3.69383402,84.379,84.32,0.6000004]